bitfinex/quotes_ETHUSD_20250426
["timestamp","ask_amount","ask_price","bid_price","bid_amount"]
[1745707800528,6.04094616,1820.4,1819.9,7.3661385]
[1745707800758,6.04094616,1820.4,1819.9,7.36610356]
[1745707801462,6.04094616,1820.4,1820.0,5.49443626]
[1745707802032,6.04094616,1820.4,1820.1,0.7756]
[1745707802229,6.45573258,1820.4,1820.1,0.7756]
[1745707802664,5.49361189,1820.3,1820.1,0.7756]
[1745707802876,5.49390176,1820.2,1819.8,10.18393449]
[1745707803039,5.49439027,1820.1,1819.9,0.7756]
[1745707803841,5.4948074,1819.9,1819.8,4.689]
[1745707804034,5.4948074,1819.9,1819.8,4.79890981]
[1745707804658,5.90027741,1819.9,1819.8,4.79890981]
[1745707805248,7.09452809,1819.9,1819.8,4.79890981]
[1745707805957,3.0,1820.1,1819.8,4.79890981]
[1745707806270,11.95163943,1820.2,1819.9,0.8253]
[1745707806437,11.95163943,1820.2,1820.0,0.11072477]
[1745707807273,5.49420361,1820.1,1820.0,0.11072477]
[1745707808166,5.49420361,1820.1,1819.8,4.689]
[1745707808471,11.95148951,1820.2,1819.9,0.93611103]
[1745707809765,5.91,1820.2,1819.9,6.43073556]
[1745707809937,5.91,1820.2,1819.9,7.54274758]
[1745707812978,5.91,1820.2,1819.9,6.43073556]
[1745707814566,5.91,1820.2,1819.9,11.92543075]
[1745707814771,12.36575233,1820.4,1820.0,5.49443082]
[1745707815071,12.36575233,1820.4,1820.1,0.11051555]
[1745707816267,17.859318,1820.4,1820.1,0.11051555]
[1745707816475,12.36575233,1820.4,1819.9,6.31992024]
[1745707816651,5.49362993,1820.3,1820.0,0.11053071]
[1745707817488,5.49359995,1820.3,1820.0,0.11053071]
[1745707818188,11.81827919,1820.4,1820.0,0.11053071]
[1745707818388,6.32478642,1820.4,1820.0,5.60498102]
[1745707818595,5.91,1820.4,1820.3,0.7841]
[1745707818766,11.4025426,1820.7,1820.3,6.27769995]
[1745707818953,11.4025426,1820.7,1820.3,6.38628367]
[1745707819160,6.04020666,1820.6,1820.3,0.89268372]
[1745707819381,5.49329817,1820.4,1820.3,0.10858372]
[1745707819859,5.91,1820.4,1820.3,0.89268372]
[1745707820790,5.91,1820.4,1820.3,6.38628367]
[1745707821089,5.91,1820.4,1820.3,0.89268372]
[1745707821781,6.03973559,1820.8,1820.3,0.89268372]
[1745707821982,11.53210525,1820.8,1820.3,7.49389133]
[1745707822182,5.49250098,1820.7,1820.3,7.49389133]
[1745707822692,6.03973559,1820.8,1820.3,7.49389133]
[1745707822693,9.03977828,1820.8,1820.3,7.49389133]
[1745707823101,9.03977828,1820.8,1820.3,7.49385496]
[1745707823795,9.03977828,1820.8,1820.3,7.49380925]
[1745707823958,9.03977828,1820.8,1820.4,5.49323614]
[1745707824404,9.03977828,1820.8,1820.5,0.1080562]
[1745707824704,6.03977828,1820.8,1820.5,0.1080562]
[1745707824909,6.45607406,1820.8,1820.5,0.1080562]
[1745707825505,8.32022362,1820.8,1820.5,0.1080562]
[1745707826679,8.32022362,1820.8,1820.5,0.8987562]
[1745707828127,0.41629578,1820.8,1820.5,6.39174455]
[1745707828422,9.24303655,1821.0,1820.5,6.39174455]
[1745707828423,0.41375473,1821.0,1820.7,6.28293879]
[1745707828586,11.40118999,1821.1,1820.7,6.28293879]
[1745707828917,11.40118999,1821.1,1820.8,0.10488405]
[1745707829217,13.14515602,1821.1,1820.8,0.10488405]
[1745707830126,6.03847027,1821.2,1820.9,0.7894]
[1745707830303,0.54749953,1821.2,1821.0,0.10467084]
[1745707830505,6.03852299,1821.2,1821.0,0.10467084]
[1745707832238,6.45775819,1821.2,1821.0,0.10467084]
[1745707833139,0.96673473,1821.2,1821.0,0.10467084]
[1745707833433,5.91,1821.3,1821.0,10.28498247]
[1745707833639,11.94798138,1821.4,1821.1,0.7894]
[1745707833800,11.94798138,1821.4,1821.2,0.10245659]
[1745707833801,6.45749953,1821.4,1821.2,0.10245659]
[1745707834136,11.94778613,1821.4,1821.1,0.7894]
[1745707834333,11.94778613,1821.4,1821.3,0.10235004]
[1745707834535,11.94778613,1821.4,1820.8,5.49190809]
[1745707834536,5.49058364,1821.3,1821.2,0.10245659]
[1745707834736,5.49178977,1820.9,1820.8,4.689]
[1745707834936,6.0392893,1820.9,1820.8,4.689]
[1745707836142,9.0392893,1820.9,1820.8,4.689]
[1745707841857,14.9492893,1820.9,1820.8,4.689]
[1745707842026,17.06838894,1820.9,1820.8,4.689]
[1745707845658,14.40178977,1820.9,1820.8,4.689]
[1745707851196,8.91,1820.9,1820.8,4.689]
[1745707851395,14.40178977,1820.9,1820.8,4.689]
[1745707854905,5.49244642,1820.7,1820.6,4.688]
[1745707855262,5.49244642,1820.7,1820.6,4.79100444]
[1745707856568,5.49226988,1820.8,1820.6,4.79100444]
[1745707860396,5.49239303,1820.7,1820.6,4.79100444]
[1745707861103,0.41428814,1820.7,1820.6,4.79100444]
[1745707861322,9.0830491,1820.7,1820.6,0.10300444]
[1745707861485,5.49298155,1820.6,1820.4,5.4793]
[1745707861811,5.49331433,1820.4,1820.2,0.8176]
[1745707864681,5.91473116,1820.4,1820.2,0.8176]
[1745707866107,0.42141683,1820.4,1820.2,0.8176]
[1745707866284,5.49330597,1820.4,1820.2,0.8176]
[1745707868322,5.49359995,1820.3,1820.1,4.688]
[1745707868495,5.49359995,1820.3,1820.1,5.5118]
[1745707868701,5.90161006,1820.4,1820.1,5.5118]
[1745707869000,5.49348802,1820.4,1820.1,5.5118]
[1745707871232,10.98704579,1820.4,1820.1,5.5118]
[1745707871542,5.49348802,1820.4,1820.1,5.5118]
[1745707872425,8.49314556,1820.5,1820.1,5.5118]
[1745707872599,8.49314556,1820.5,1820.1,11.00599853]
[1745707872931,13.98639879,1820.5,1820.1,11.00599853]
[1745707873132,8.89830034,1820.5,1820.1,11.00599853]
[1745707873337,3.40515478,1820.5,1820.2,5.49389076]
[1745707873500,3.40515478,1820.5,1820.3,0.8238]
[1745707874422,8.89818029,1820.5,1820.3,0.8238]
[1745707876835,0.40515478,1820.5,1820.3,0.8238]
[1745707877063,11.4028272,1820.6,1820.3,0.8238]
[1745707877771,17.30625684,1820.6,1820.3,0.8238]
[1745707878273,5.49302848,1820.5,1820.3,0.8238]
[1745707883887,0.8261,1820.4,1820.1,5.78859985]
[1745707884480,5.49302848,1820.5,1820.1,11.28278558]
[1745707884693,5.49302848,1820.5,1820.2,0.7759]
[1745707885099,12.36084542,1820.6,1820.2,0.7759]
[1745707885662,17.85384064,1820.6,1820.2,0.7759]
[1745707886269,5.49302893,1820.5,1820.2,0.7759]
[1745707888318,5.49359995,1820.3,1820.1,4.688]
[1745707888467,6.04096568,1820.4,1820.1,4.688]
[1745707889104,5.49362585,1820.3,1820.1,4.688]
[1745707889313,6.84398537,1820.4,1820.1,4.688]
[1745707889511,6.04098537,1820.4,1820.1,4.688]
[1745707890068,5.4937009,1820.3,1820.1,4.688]
[1745707890701,5.49390176,1820.2,1820.1,4.688]
[1745707890909,5.49390176,1820.2,1820.0,0.769]
[1745707890910,5.49484663,1819.9,1819.6,17.2379]
[1745707891208,6.04234616,1819.9,1819.7,4.688]
[1745707891598,0.54749953,1819.9,1819.7,4.688]
[1745707892224,6.44522703,1819.9,1819.7,4.688]
[1745707892516,0.95029417,1819.9,1819.7,4.688]
[1745707895160,0.40279464,1819.9,1819.7,4.688]
[1745707895361,11.40465431,1820.0,1819.7,4.688]
[1745707895860,5.4948173,1819.9,1819.7,4.688]
[1745707896070,5.89796419,1819.9,1819.7,4.688]
[1745707896464,0.40314689,1819.9,1819.7,4.688]
[1745707896670,11.40466131,1820.0,1819.7,4.688]
[1745707897266,5.49484621,1819.9,1819.7,4.688]
[1745707898033,12.2771785,1820.0,1819.7,4.688]
[1745707900382,11.40473174,1820.0,1819.7,4.688]
[1745707900977,11.81999901,1820.0,1819.7,4.688]
[1745707903993,5.49492419,1819.9,1819.7,4.688]
[1745707904162,5.49541133,1819.7,1819.4,0.8191]
[1745707904367,6.67635496,1819.7,1819.5,4.689]
[1745707904669,5.49571334,1819.6,1819.5,4.689]
[1745707904879,6.67646461,1819.7,1819.5,4.689]
[1745707905449,0.54749953,1819.7,1819.5,4.689]
[1745707905674,14.95248283,1819.9,1819.5,5.4574]
[1745707905989,14.95247222,1819.9,1819.5,5.4574]
[1745707906878,5.49513843,1819.8,1819.5,5.4574]
[1745707907552,14.40484601,1819.9,1819.5,10.95340532]
[1745707908994,5.91,1819.9,1819.7,6.26375243]
[1745707909291,0.41526727,1820.0,1819.7,6.26375243]
[1745707909477,14.95194564,1820.1,1819.7,6.26375243]
[1745707910068,3.0,1820.1,1819.8,5.49504843]
[1745707910267,8.49420621,1820.1,1819.7,6.26367182]
[1745707910493,8.9004763,1820.1,1819.7,6.26367182]
[1745707914107,9.44797583,1820.1,1819.7,6.26367182]
[1745707915126,14.94247278,1820.1,1819.7,0.7684]
[1745707915311,9.44797583,1820.1,1819.7,0.7684]
[1745707915600,9.50280546,1820.1,1819.7,0.7684]
[1745707915914,6.04250474,1819.9,1819.5,5.78434053]
[1745707916212,6.04250474,1819.9,1819.5,11.28020857]
[1745707917611,0.54749953,1819.9,1819.5,11.28011084]
[1745707917812,0.54749953,1819.9,1819.6,5.49568834]
[1745707918118,0.54749953,1819.9,1819.5,5.78434053]
[1745707918429,6.04242216,1819.9,1819.5,11.28031595]
[1745707918787,0.54749953,1819.9,1819.6,5.49562466]
[1745707918982,3.54749953,1819.9,1819.5,5.78434053]
[1745707919188,5.49526345,1819.8,1819.5,4.689]
[1745707919727,5.49541549,1819.7,1819.5,4.689]
[1745707920021,5.49529434,1819.8,1819.5,4.689]
[1745707925090,6.79847631,1819.7,1819.5,4.689]
[1745707925388,8.02785338,1819.7,1819.5,4.689]
[1745707926030,8.02785338,1819.7,1819.4,4.688]
[1745707928224,0.7554,1819.7,1819.4,4.688]
[1745707928421,0.7554,1819.7,1819.4,10.18420659]
[1745707928914,5.49525144,1819.8,1819.5,0.8164]
[1745707932026,7.426669,1819.9,1819.5,0.8164]
[1745707932226,5.91,1819.9,1819.5,6.31229959]
[1745707932531,5.91,1819.9,1819.6,5.4955465]
[1745707933098,5.91,1819.9,1819.5,7.41226322]
[1745707933297,5.91,1819.9,1819.5,7.41222941]
[1745707933599,5.91,1819.9,1819.6,4.688]
[1745707934030,11.40508285,1819.9,1819.6,4.688]
[1745707935629,5.91,1819.9,1819.6,4.688]
[1745707935831,14.40469522,1820.0,1819.6,4.688]
[1745707936035,16.0223817,1820.0,1819.6,4.688]
[1745707937178,5.49483881,1819.9,1819.6,4.688]
[1745707937321,5.49483881,1819.9,1819.7,0.10494607]
[1745707937496,5.49483881,1819.9,1819.6,4.688]
[1745707937699,5.49483881,1819.9,1819.7,0.10494607]
[1745707937927,5.49483881,1819.9,1819.6,4.688]
[1745707938133,5.49483881,1819.9,1819.7,0.10494607]
[1745707938334,5.49483881,1819.9,1819.6,4.688]
[1745707938535,5.49483881,1819.9,1819.7,0.10494607]
[1745707938739,6.31350935,1819.8,1819.6,4.688]
[1745707938938,5.49541133,1819.7,1819.6,4.688]
[1745707939103,5.49541133,1819.7,1819.6,4.79296132]
[1745707947840,17.71907894,1819.8,1819.6,4.79296132]
[1745707948067,5.49541133,1819.7,1819.6,4.79296132]
[1745707948795,12.22370311,1819.8,1819.6,4.79296132]
[1745707949267,13.88328389,1819.8,1819.6,4.79296132]
[1745707949866,13.06488389,1819.8,1819.6,4.79296132]
[1745707951673,11.40530311,1819.8,1819.6,4.79296132]
[1745707952973,6.81961086,1819.7,1819.6,0.10496132]
[1745707953175,1.32419953,1819.7,1819.3,4.687]
[1745707953367,5.49624819,1819.5,1819.4,0.10615981]
[1745707953539,5.49624819,1819.5,1819.3,4.687]
[1745707953743,5.49624819,1819.5,1819.4,0.1061393]
[1745707954077,5.49624819,1819.5,1819.3,4.687]
[1745707954377,5.49624819,1819.5,1819.4,0.1061393]
[1745707954576,5.49624819,1819.5,1819.3,4.687]
[1745707954775,5.49624819,1819.5,1819.4,0.1061393]
[1745707954977,5.49624819,1819.5,1819.3,4.687]
[1745707955156,5.49624819,1819.5,1819.4,0.1061393]
[1745707955355,5.49624819,1819.5,1819.3,4.687]
[1745707955555,5.49624819,1819.5,1819.4,0.1061393]
[1745707955756,5.9088123,1819.5,1819.3,4.687]
[1745707955971,5.9088123,1819.5,1819.4,0.1061393]
[1745707956164,5.9088123,1819.5,1819.3,4.687]
[1745707956371,5.9088123,1819.5,1819.4,0.1061393]
[1745707956540,5.9088123,1819.5,1819.3,4.687]
[1745707956738,5.9088123,1819.5,1819.4,0.1061393]
[1745707957184,5.9088123,1819.5,1819.3,4.687]
[1745707957480,5.9088123,1819.5,1819.4,0.1061393]
[1745707957778,7.04928666,1819.5,1819.3,4.687]
[1745707957981,5.9088123,1819.5,1819.4,0.1061393]
[1745707958275,5.9088123,1819.5,1819.3,4.687]
[1745707958477,5.9088123,1819.5,1819.4,0.10732988]
[1745707958778,5.9088123,1819.5,1819.3,4.687]
[1745707958978,5.9088123,1819.5,1819.4,0.10732988]
[1745707959273,5.9088123,1819.5,1819.3,4.687]
[1745707959274,6.26811746,1819.4,1819.3,4.687]
[1745707968190,5.49669204,1819.3,1819.1,0.4167694]
[1745707968491,5.49669204,1819.3,1819.1,5.1017694]
[1745707968985,5.49669204,1819.3,1819.2,0.10869493]
[1745707969182,5.49669204,1819.3,1819.1,5.1017694]
[1745707969387,5.49669204,1819.3,1819.2,0.10869493]
[1745707969608,7.22068764,1819.3,1819.2,0.10869493]
[1745707969752,7.22068764,1819.3,1819.1,5.1017694]
[1745707969953,7.22068764,1819.3,1819.2,0.10869493]
[1745707970189,7.22068764,1819.3,1819.1,5.1017694]
[1745707970412,7.22068764,1819.3,1819.2,0.10869493]
[1745707970557,7.22068764,1819.3,1819.1,5.1017694]
[1745707970759,0.72206876,1819.2,1819.1,0.4167694]
[1745707970954,12.12899048,1819.2,1819.1,0.4167694]
[1745707971171,5.91,1819.2,1819.1,0.4167694]
[1745707976998,5.49663733,1819.3,1819.1,0.4167694]
[1745707977695,6.54412819,1819.3,1819.1,0.4167694]
[1745707978296,1.04749086,1819.3,1819.1,0.4167694]
[1745707978504,5.91,1819.4,1819.1,0.4167694]
[1745707978703,11.40631841,1819.4,1819.1,0.4167694]
[1745707979509,12.45380927,1819.4,1819.1,0.4167694]
[1745707979806,11.40631841,1819.4,1819.1,0.4167694]
[1745707982437,11.40631841,1819.4,1819.1,1.55204584]
[1745707982600,11.81858731,1819.5,1819.2,0.7564]
[1745707982804,5.49633954,1819.4,1819.2,0.7564]
[1745707983124,5.49661957,1819.3,1819.1,0.4167694]
[1745707983320,5.49631746,1819.4,1819.1,0.4167694]
[1745707983529,5.49688393,1819.3,1819.1,0.4167694]
[1745707984035,5.49688393,1819.3,1819.2,0.10959555]
[1745707984236,5.49688393,1819.3,1819.1,0.4167694]
[1745707984438,5.49688393,1819.3,1819.2,0.10959555]
[1745707984730,5.49688393,1819.3,1819.1,0.4167694]
[1745707989066,6.0467875,1819.3,1819.1,0.4167694]
[1745707994773,6.65146625,1819.3,1819.1,0.4167694]
[1745707994979,6.65146625,1819.3,1819.2,0.12293568]
[1745707995380,1.15458232,1819.3,1819.1,0.4167694]
[1745707995545,1.15458232,1819.3,1819.2,0.12299058]
[1745707995877,1.15458232,1819.3,1819.1,0.4167694]
[1745707996075,1.15458232,1819.3,1819.2,0.12299058]
[1745707996281,6.65120189,1819.3,1819.2,0.12299058]
[1745707996448,6.65120189,1819.3,1819.1,0.4167694]
[1745707996644,10.01117154,1819.2,1819.1,0.4167694]
[1745707997643,9.95634191,1819.2,1819.1,0.4167694]
[1745707998366,10.01117154,1819.2,1819.1,0.4167694]
[1745707999081,9.95634191,1819.2,1819.1,0.51941419]
[1745707999979,15.86634191,1819.2,1819.1,0.51941419]
[1745708001561,16.41624548,1819.2,1819.1,0.51941419]
[1745708002551,3.767,1818.9,1818.4,0.8122]
[1745708002751,5.49934007,1818.4,1818.3,4.684]
[1745708002964,6.26664252,1818.3,1818.1,1.83073923]
[1745708003290,9.81684857,1818.2,1818.1,1e-08]
[1745708003753,9.04984857,1818.2,1818.1,1e-08]
[1745708006055,9.1046782,1818.2,1818.1,1e-08]
[1745708006255,11.77910489,1818.2,1818.1,1e-08]
[1745708006485,11.72427526,1818.2,1818.1,1e-08]
[1745708008482,11.72427526,1818.2,1818.1,0.10935846]
[1745708011689,17.63427526,1818.2,1818.1,0.10935846]
[1745708014477,17.63427526,1818.2,1818.1,1e-08]
[1745708014677,5.50115524,1817.8,1817.7,4.687]
[1745708014876,15.51117433,1817.8,1817.7,4.687]
[1745708015780,5.50176056,1817.6,1817.3,0.7906]
[1745708016076,8.50160072,1817.7,1817.6,4.687]
[1745708016812,5.50204538,1817.6,1817.3,0.7906]
[1745708017011,6.05189191,1817.6,1817.4,4.687]
[1745708017218,5.50206327,1817.5,1817.4,4.687]
[1745708017515,5.91911283,1817.5,1817.4,4.687]
[1745708017813,0.41704956,1817.5,1817.4,4.687]
[1745708017981,11.96189191,1817.6,1817.4,4.687]
[1745708018179,8.50266879,1817.3,1817.2,0.4167694]
[1745708018375,0.54990357,1817.4,1817.2,0.4167694]
[1745708018586,3.0,1817.4,1817.2,1.2073694]
[1745708018793,8.50249459,1817.4,1817.3,0.10471945]
[1745708018993,3.0,1817.4,1817.3,0.10471945]
[1745708019831,8.50236601,1817.4,1817.3,0.10471945]
[1745708020217,8.50236601,1817.4,1817.2,0.4167694]
[1745708020391,12.3713655,1817.5,1817.3,0.10618712]
[1745708020587,12.3713655,1817.5,1817.3,0.89218712]
[1745708021213,5.50236601,1817.4,1817.3,0.89218712]
[1745708021797,12.37142892,1817.5,1817.3,0.89218712]
[1745708022817,5.50236601,1817.4,1817.3,0.89218712]
[1745708023805,12.37147673,1817.5,1817.3,0.89218712]
[1745708024319,11.41194151,1817.6,1817.3,0.89218712]
[1745708024523,11.41188533,1817.6,1817.3,0.89218712]
[1745708025727,11.41177756,1817.6,1817.3,0.89218712]
[1745708026089,5.91,1817.6,1817.3,0.89218712]
[1745708026297,5.91,1817.6,1817.5,0.8117]
[1745708026503,5.91,1817.6,1817.5,0.9176729]
[1745708026826,6.32674694,1817.8,1817.5,5.6056729]
[1745708027129,6.32674694,1817.8,1817.6,0.8117]
[1745708027450,6.32674694,1817.8,1817.7,0.10406177]
[1745708027646,6.32674694,1817.8,1817.6,0.8117]
[1745708027926,5.91,1817.8,1817.7,0.10406177]
[1745708028447,3.54990357,1817.9,1817.7,0.10406177]
[1745708028653,3.54990357,1817.9,1817.6,0.8117]
[1745708028949,3.54990357,1817.9,1817.7,0.10406177]
[1745708029241,3.54990357,1817.9,1817.6,0.8117]
[1745708029438,5.50123719,1817.8,1817.7,0.10406177]
[1745708029639,5.50123719,1817.8,1817.6,0.8117]
[1745708029855,5.50123719,1817.8,1817.7,0.10406177]
[1745708030145,5.50123719,1817.8,1817.6,0.8117]
[1745708030430,5.50123719,1817.8,1817.7,0.10406177]
[1745708030635,9.05094391,1817.9,1817.6,0.8117]
[1745708030938,9.46919035,1817.9,1817.7,0.10406177]
[1745708031349,9.46919035,1817.9,1817.6,0.8117]
[1745708031556,5.50116458,1817.8,1817.6,0.8117]
[1745708032552,9.46917329,1817.9,1817.6,0.8117]
[1745708032956,3.41824644,1817.9,1817.6,6.3134128]
[1745708033154,3.41824644,1817.9,1817.6,0.8117]
[1745708033455,8.91914045,1817.9,1817.6,0.8117]
[1745708034431,14.42025719,1817.9,1817.6,0.8117]
[1745708035460,5.5011833,1817.8,1817.6,0.8117]
[1745708036918,5.5011833,1817.8,1817.3,5.50247947]
[1745708036919,6.05146477,1817.7,1817.5,4.687]
[1745708037234,5.50194568,1817.6,1817.5,4.687]
[1745708037659,6.05146477,1817.7,1817.5,4.687]
[1745708038157,11.55321341,1817.7,1817.5,4.687]
[1745708038369,17.46321341,1817.7,1817.5,4.687]
[1745708038656,11.96146477,1817.7,1817.5,4.687]
[1745708038864,5.50176056,1817.6,1817.3,0.7839]
[1745708039157,5.50176056,1817.6,1817.4,4.687]
[1745708039556,5.50176056,1817.6,1817.2,0.4167694]
[1745708039557,5.50266879,1817.3,1817.2,0.4167694]
[1745708039769,5.50266879,1817.3,1817.2,1e-08]
[1745708039770,9.84597236,1817.3,1817.2,1e-08]
[1745708039927,5.50439659,1816.8,1816.5,0.7839]
[1745708040121,5.50409006,1816.9,1816.5,0.7839]
[1745708040336,5.50439397,1816.8,1816.5,0.7839]
[1745708040736,1.34330357,1817.3,1816.5,1.33099]
[1745708040935,11.13427984,1817.7,1817.1,5.50314064]
[1745708040936,6.27655914,1817.6,1817.1,5.50314064]
[1745708041140,5.50224911,1817.5,1817.2,5.4631]
[1745708042469,8.50194427,1817.6,1817.2,5.4631]
[1745708042965,8.50194427,1817.6,1817.2,10.96594885]
[1745708043173,5.50137263,1817.8,1817.3,0.7761]
[1745708043465,5.50137263,1817.8,1817.4,5.50233597]
[1745708043668,5.50137263,1817.8,1817.3,6.27858665]
[1745708043855,5.50148209,1817.7,1817.3,6.27858665]
[1745708044050,5.50148209,1817.7,1817.4,0.62785867]
[1745708044257,5.50148209,1817.7,1817.3,6.27858665]
[1745708044766,3.54990357,1817.8,1817.4,5.5022129]
[1745708044944,9.05111062,1817.8,1817.4,5.5022129]
[1745708045145,9.05111062,1817.8,1817.3,6.27859635]
[1745708045670,3.0,1817.8,1817.4,5.5021011]
[1745708045854,0.40244022,1817.9,1817.5,1.31321011]
[1745708046058,8.50121306,1817.8,1817.6,4.687]
[1745708047537,3.0,1817.8,1817.6,4.687]
[1745708048470,8.50116662,1817.8,1817.6,4.687]
[1745708050044,3.0,1817.8,1817.6,4.687]
[1745708050244,5.50137786,1817.8,1817.6,4.687]
[1745708053154,5.50145788,1817.7,1817.6,4.687]
[1745708055062,5.50145788,1817.7,1817.2,4.687]
[1745708055063,5.50291001,1817.3,1817.2,4.687]
[1745708058379,5.50247379,1817.4,1817.2,4.687]
[1745708058580,11.00514188,1817.4,1817.2,4.687]
[1745708058738,5.50266879,1817.3,1817.2,4.687]
[1745708059180,5.50266879,1817.3,1816.9,5.50372402]
[1745708059181,5.50323134,1817.2,1816.8,16.512]
[1745708059386,11.41309954,1817.2,1816.9,4.693]
[1745708059591,11.41309954,1817.2,1817.0,0.7678]
[1745708059942,5.91,1817.2,1817.0,0.7678]
[1745708061914,5.91,1817.2,1817.0,6.27132102]
[1745708062115,5.91,1817.2,1817.0,7.91813693]
[1745708062415,5.91,1817.2,1817.0,2.41461591]
[1745708062575,5.91,1817.2,1817.0,0.7678]
[1745708062775,5.91,1817.2,1817.0,6.27123826]
[1745708063171,5.50237725,1817.4,1817.0,6.27123826]
[1745708064953,5.50315644,1817.2,1817.0,0.7678]
[1745708065410,5.50282747,1817.3,1817.0,0.7678]
[1745708065411,5.50285718,1817.3,1817.0,0.7678]
[1745708065706,0.55028572,1817.2,1817.0,0.7678]
[1745708066275,6.05326196,1817.2,1817.0,0.7678]
[1745708067514,5.50327444,1817.1,1816.9,4.693]
[1745708067715,6.05326196,1817.2,1816.9,4.693]
[1745708071125,5.50370037,1817.0,1816.8,21.9648]
[1745708071316,5.50370037,1817.0,1816.8,21.206]
[1745708072098,5.50388023,1816.9,1816.8,16.512]
[1745708074145,5.50418317,1816.8,1816.7,4.694]
[1745708074491,5.50418317,1816.8,1816.4,0.77]
[1745708074492,5.50453153,1816.7,1816.4,0.77]
[1745708074693,5.50418317,1816.8,1816.4,6.27537529]
[1745708074926,5.50418317,1816.8,1816.4,0.77]
[1745708075531,5.50418317,1816.8,1816.5,4.694]
[1745708075830,5.50485063,1816.6,1816.4,5.464]
[1745708076130,5.50509221,1816.5,1816.4,4.694]
[1745708076356,5.91,1816.6,1816.4,4.694]
[1745708076506,5.50509221,1816.5,1816.4,4.694]
[1745708076857,5.50544788,1816.4,1816.3,4.694]
[1745708077215,5.50525962,1816.5,1816.3,4.694]
[1745708078958,5.50539528,1816.4,1816.3,4.694]
[1745708079108,6.73953795,1816.5,1816.3,4.694]
[1745708079309,5.91,1816.6,1816.3,5.464]
[1745708079649,5.91,1816.6,1816.3,10.96954298]
[1745708079846,5.91,1816.6,1816.5,0.77]
[1745708080152,5.91,1816.6,1816.5,6.27509221]
[1745708080649,5.91,1816.6,1816.5,0.77]
[1745708081546,5.91,1816.6,1816.4,5.50520413]
[1745708081738,5.91,1816.6,1816.3,11.01060697]
[1745708081938,11.41500012,1816.6,1816.3,4.695]
[1745708082138,5.50530109,1816.5,1816.3,4.695]
[1745708083337,5.50539528,1816.4,1816.3,4.695]
[1745708083711,6.3312235,1816.5,1816.3,4.695]
[1745708086243,11.41491554,1816.6,1816.3,4.695]
[1745708086447,11.41491554,1816.6,1816.4,6.29357882]
[1745708086448,5.91,1816.6,1816.4,6.29357882]
[1745708087356,5.91,1816.6,1816.5,5.50509221]
[1745708087569,5.91,1816.6,1816.4,5.50527882]
[1745708087570,5.5034259,1817.1,1816.7,5.50443871]
[1745708087743,5.5034259,1817.1,1816.8,4.695]
[1745708087947,7.60620968,1817.1,1816.8,4.695]
[1745708088447,7.19506805,1817.1,1816.8,4.695]
[1745708089065,14.41299558,1817.2,1816.8,4.695]
[1745708089066,5.91,1817.2,1816.9,6.29205285]
[1745708089870,11.41194488,1817.6,1817.0,6.2916094]
[1745708090160,5.50206952,1817.5,1817.1,5.5031012]
[1745708090357,5.50206952,1817.5,1817.2,4.706]
[1745708091964,14.81520398,1817.6,1817.2,4.706]
[1745708092259,8.50218602,1817.5,1817.2,4.706]
[1745708092829,3.0,1817.5,1817.2,4.706]
[1745708093356,8.50218564,1817.5,1817.2,4.706]
[1745708093756,3.0,1817.5,1817.2,4.706]
[1745708094228,8.50206699,1817.5,1817.2,4.706]
[1745708094430,10.1473149,1817.5,1817.2,4.706]
[1745708095267,4.64524791,1817.5,1817.2,10.20895806]
[1745708095564,4.64524791,1817.5,1817.2,4.706]
[1745708095752,10.1473237,1817.5,1817.2,4.706]
[1745708096764,4.64524791,1817.5,1817.2,10.20888807]
[1745708096967,3.0,1817.5,1817.3,0.7793]
[1745708097456,11.41176718,1817.6,1817.3,0.7793]
[1745708097840,5.91,1817.6,1817.3,0.7793]
[1745708098365,6.31308464,1817.6,1817.3,0.7793]
[1745708099848,11.81485865,1817.6,1817.3,0.7793]
[1745708100455,13.98087564,1817.6,1817.3,0.7793]
[1745708100656,8.47910163,1817.6,1817.3,0.7793]
[1745708101060,13.98104448,1817.6,1817.3,0.7793]
[1745708101271,6.05218081,1817.5,1817.2,5.4853]
[1745708104182,0.54990357,1817.3,1817.1,4.704]
[1745708104470,5.50280046,1817.3,1817.1,4.704]
[1745708105738,11.41280046,1817.3,1817.1,4.704]
[1745708106077,16.91575355,1817.3,1817.1,4.704]
[1745708106271,16.91575355,1817.3,1817.1,5.5349]
[1745708106272,5.91,1817.3,1817.1,5.5349]
[1745708106974,11.41267703,1817.3,1817.1,5.5349]
[1745708107951,5.5029716,1817.2,1817.1,5.5349]
[1745708109580,6.60353646,1817.2,1817.1,4.704]
[1745708110277,9.60353646,1817.2,1817.1,4.704]
[1745708110947,9.65836609,1817.2,1817.1,4.704]
[1745708112488,5.50388023,1816.9,1816.8,0.8309]
[1745708112785,5.50388023,1816.9,1816.8,5.5349]
[1745708112980,5.50388023,1816.9,1816.8,0.8309]
[1745708113278,5.50418317,1816.8,1816.7,17.2787]
[1745708113472,5.50418317,1816.8,1816.7,21.9837]
[1745708114294,5.50418317,1816.8,1816.7,21.219]
[1745708114676,6.60498951,1816.8,1816.7,21.219]
[1745708115690,5.50418317,1816.8,1816.7,21.219]
[1745708119004,5.50418317,1816.8,1816.7,21.9896]
[1745708123998,3.0,1817.0,1816.7,21.9896]
[1745708124503,5.91,1817.1,1816.7,21.9896]
[1745708124678,5.91,1817.1,1816.8,0.8157]
[1745708125021,5.91,1817.1,1816.9,0.8157]
[1745708127396,5.91,1817.5,1817.1,0.8152]
[1745708127601,5.91,1817.6,1817.2,4.688]
[1745708127780,11.41189724,1817.6,1817.2,4.688]
[1745708127980,6.64339637,1817.5,1817.2,4.688]
[1745708128608,7.05869801,1817.5,1817.2,4.688]
[1745708130078,7.05867234,1817.5,1817.2,4.688]
[1745708130599,1.55649136,1817.5,1817.2,4.688]
[1745708130767,0.41530164,1817.5,1817.2,4.688]
[1745708130967,11.41191029,1817.6,1817.2,4.688]
[1745708132904,11.82792335,1817.6,1817.2,4.688]
[1745708133211,5.91,1817.6,1817.3,0.85952345]
[1745708133385,6.31162418,1817.9,1817.4,5.50223174]
[1745708133585,6.31162418,1817.9,1817.4,6.68314595]
[1745708133909,5.50116401,1817.8,1817.4,6.68314595]